Cogmind - Beta 17.1 @@@ ROGUE MODE // 2026.09.12 @ 15:13:59 Player: st-3v1 Result: Destroyed by as-20726 with Assembled Rifle Performance ------------- Evolutions (0) 0 Regions Visited (2) 400 Robots Destroyed (6) 30 Value Destroyed (95) 95 Prototype IDs (0) 0 Alien Tech Used (0) 0 Bonus (159) 159 TOTAL SCORE: 684 Bonus ------- Follower Combat Kills 159 Cogmind --------- Core Integrity 0/250 Matter 300/300 Energy 99/100 System Corruption 0% Temperature Cool (0) Movement Core (50) Location -10/Mines Parts ------- > --- POWER (1) -------- (None) > --- PROPULSION (2) --- Light Treads > --- UTILITY (2) ------ Seismic Detector Trap Extractor (0/4) > --- WEAPON (2) ------- (None) > --- INVENTORY (5) ---- Light Nuclear Core High-capacity Storage Unit Light Armor Plating Light Armor Plating Trap Extractor (0/4) Peak State ------------ > --- POWER ------------ (None) > --- PROPULSION ------- Light Treads Light Treads > --- UTILITY ---------- Seismic Detector Trap Extractor > --- WEAPON ----------- (None) > --- INVENTORY -------- Ion Engine High-capacity Storage Unit Light Armor Plating Light Armor Plating Light Armor Plating [Rating: 5] Favorites ----------- Power Ion Engine Engine Ion Engine Propulsion Light Treads Treads Light Treads Utility Seismic Detector Device Seismic Detector Storage Small Storage Unit Weapon None Build | -11 -10 -10 ------- Run | Yrd Mat Min Slots Evolved . | . . . Power . | . . . Propulsion . | . . . Utility . | . . . Weapon . | . . . Parts Attached 8 | 4 2 2 Power 1 | 1 . . Engine 1 | 1 . . Core . | . . . Reactor . | . . . Propulsion 3 | 2 . 1 Treads 3 | 2 . 1 Leg . | . . . Wheel . | . . . Hover . | . . . Flight . | . . . Utility 4 | 1 2 1 Device 3 | . 2 1 Storage 1 | 1 . . Processor . | . . . Hackware . | . . . Protection . | . . . Artifact . | . . . Weapon . | . . . Energy Gun . | . . . Energy Cannon . | . . . Ballistic Gun . | . . . Ballistic Cannon . | . . . Launcher . | . . . Special Weapon . | . . . Impact Weapon . | . . . Slashing Weapon . | . . . Piercing Weapon . | . . . Special Melee Weapon . | . . . Unidentified Prototypes . | . . . Parts Lost 3 | . 1 2 Power . | . . . Propulsion 2 | . 1 1 Utility 1 | . . 1 Weapon . | . . . Highest Loss Streak 1 | . 1 1 To Critical Strikes . | . . . Average Backups 3 | . 3 4 Power . | . . . Propulsion . | . . . Utility 2 | . 3 4 Weapon . | . . . Tool/Special . | . . . Unused Backups 8 | . 3 5 Power 2 | . 1 1 Propulsion . | . . . Utility 6 | . 2 4 Weapon . | . . . Tool/Special . | . . . Average Slot Usage (%) 42 | . 48 33 Treads 21 | . 26 14 Device 20 | . 21 19 Peak Build Rating 5 | 4 5 4 Average Rating 3 | 3 3 3 On Entrance 2 | . 2 4 Avg Prop Armor Cover (%) 34 | 41 37 30 Naked Turns . | . . . Heaviest Build 10 | 10 3 3 Greatest Support 40 | 40 40 20 Greatest Overweight (x) . | . . . Average Overweight (x) . | . . . Largest Inventory Capacity 8 | 8 5 5 Average Capacity 5 | 7 5 5 Most Carried 5 | 3 5 5 Average Carried 3 | . 3 4 Final Capacity 5 | 5 5 5 Final Carried 5 | 3 5 5 Class Distribution -------------------- 100% | Mutant Dominant Class ---------------- Mutant | -10/Materials Mutant | -10/Mines Resources | -11 -10 -10 ----------- Run | Yrd Mat Min Matter Collected 199 | 189 . 10 Remotely . | . . . Salvage Created 60 | 33 21 6 Parts 7 | 2 2 3 Haulers Intercepted . | . . . Recyclers Shooed . | . . . Parts Field Recycled . | . . . Retrieved Matter . | . . . Parts Self-Destructed . | . . . Prevented . | . . . Parts Restored . | . . . Kills | -11 -10 -10 ------- Run | Yrd Mat Min Combat Hostiles Destroyed 2 | . 2 . Melee 2 | . 2 . Classes Destroyed 3 | 2 1 . Tunneler 3 | 2 . 1 Recycler 1 | 1 . . Grunt 2 | . 2 . Best Kill Streak 1 | 1 1 1 Combat Bots Only 1 | . 1 . Max Kills in Single Turn 1 | 1 1 1 Gunslinging . | . . . Exploded . | . . . Melee 1 | . 1 . Uniques/NPCs Destroyed . | . . . Combat | -11 -10 -10 -------- Run | Yrd Mat Min Hostile Shots Fired 66 | . 29 37 Missed 17 | . 7 10 Hits 49 | . 22 27 Melee 4 | . . 4 Projectile 45 | . 22 23 Critical Strikes 1 | . 1 . Part Disruptions 1 | . . 1 Damage Taken 657 | . 267 390 Core 259 | . 59 200 Absorbed by Shields . | . . . Core Remaining (%) 100 | 100 . . Volleys Fired . | . . . Largest . | . . . Hottest . | . . . Shots Fired . | . . . Gun . | . . . Cannon . | . . . Launcher . | . . . Special . | . . . Kinetic . | . . . Thermal . | . . . Explosive . | . . . Electromagnetic . | . . . Robot Hit Streak . | . . . Robot Miss Streak . | . . . Penetration Max . | . . . Secondary Targets . | . . . Shots Hit Robots . | . . . Core Hits 11 | 5 6 . Critical Kills . | . . . Critical Parts Destroyed . | . . . Critical Strikes . | . . . Melee Attacks . | . . . Impact . | . . . Slashing . | . . . Piercing . | . . . Sneak Attacks . | . . . Combat Hostiles . | . . . Follow-up Attacks . | . . . Damage Inflicted 67 | 49 18 . Guns . | . . . Cannons . | . . . Explosions . | . . . Melee . | . . . Ramming 67 | 49 18 . Kinetic . | . . . Thermal . | . . . Explosive . | . . . Electromagnetic . | . . . Impact . | . . . Slashing . | . . . Piercing . | . . . Highest Corruption . | . . . Average Corruption . | . . . Corruption Purged . | . . . Corruption Blocked . | . . . Overload Shots . | . . . Overflow Damage . | . . . Projectiles . | . . . Explosions . | . . . Melee . | . . . Knockbacks 2 | 2 . . Impact 2 | 2 . . Kinetic . | . . . Secondary . | . . . Self-Inflicted Damage . | . . . Shots . | . . . Rammed 47 | 25 20 2 Targets Rammed 52 | 27 22 3 Kicked . | . . . Crushed 5 | 2 2 1 Highest Temperature 2 | . 2 . Average Temperature 2 | . 2 . Received Heat Transfer 237 | . 165 72 Siege Activations . | . . . Martial Activations . | . . . Shielding Activations . | . . . Robots Disrupted . | . . . Combat Hostiles . | . . . Robots Corrupted . | . . . Combat Hostiles . | . . . Parts Fried . | . . . Impact Corruptions . | . . . Robots Melted . | . . . Combat Hostiles . | . . . Parts Melted . | . . . Heat Transferred . | . . . Parts Sabotaged . | . . . Parts Stolen . | . . . Parts Stripped . | . . . Power Chain Reactions . | . . . Alert | -11 -10 -10 ------- Run | Yrd Mat Min Maximum Alert Level . | . . . Low Security (%) 100 | 100 100 100 Level 1 . | . . . Level 2 . | . . . Level 3 . | . . . Level 4 . | . . . Level 5 . | . . . High Security . | . . . Max Security . | . . . Peak Influence 127 | 5 127 111 Initial 45 | . . 45 Average 17 | . 15 36 Influence Increases 536 | 15 320 201 Destroy 0b10 Robot/C 140 | . 40 100 Destroy 0b10 Robot/NC 20 | 15 . 5 Destroy Leader 30 | . . 30 Allied During Kill 21 | . . 21 Successful Hack 25 | . 25 . Partial Spotted 30 | . 30 . Lose Combat Pursuer 270 | . 225 45 Influence Decreases 536 | 15 204 317 Entered New Map 71 | . . 71 Time Decay 375 | 15 194 166 Lost Part 30 | . 10 20 Lost Ally 60 | . . 60 Squads Dispatched 2 | . 1 1 Investigation 2 | . 1 1 Extermination . | . . . Reinforcement . | . . . Assault . | . . . Garrison . | . . . Intercept . | . . . Searches Triggered . | . . . Construction Impeded . | . . . Haulers Reinforced . | . . . Active Scanning Responses . | . . . Cargo Convoy Interrupts . | . . . Stealth | -11 -10 -10 --------- Run | Yrd Mat Min Distress Signals 6 | . 5 1 Communications Jammed . | . . . Distress Signals . | . . . Times Spotted 45 | . 18 27 Peak Tracking Total 13 | . 6 13 Tactical Retreats 9 | . 6 3 Traps | -11 -10 -10 ------- Run | Yrd Mat Min Traps Triggered 2 | . 2 . Indirectly . | . . . Trap Hack Attempts . | . . . Triggered . | . . . Disarmed . | . . . Reprogrammed . | . . . Reused . | . . . Traps Extracted . | . . . Installed . | . . . Triggered . | . . . Machines | -11 -10 -10 ---------- Run | Yrd Mat Min Machines Disabled . | . . . Max in Single Turn . | . . . Machines Repaired . | . . . Machines Dismantled . | . . . Machines Sabotaged . | . . . Overloaded Fab Kills . | . . . Hacking | -11 -10 -10 --------- Run | Yrd Mat Min Machines Accessed 7 | . 6 1 Terminals 6 | . 6 . Fabricators . | . . . Repair Stations . | . . . Recycling Units . | . . . Scanalyzers . | . . . Garrison Access . | . . . Total Hacks 21 | . 20 1 Successful 15 | . 14 1 Failed 6 | . 6 . Catastrophic . | . . . Database Lockouts . | . . . Manual 16 | . 16 . Terminals 20 | . 20 . Fabricators . | . . . Repair Stations . | . . . Recycling Units . | . . . Scanalyzers . | . . . Garrison Access . | . . . Terminal Hacks 6 | . 5 1 Part Schematic 1 | . 1 . Robot Analysis 1 | . 1 . Open Door 1 | . . 1 Level Access Points 1 | . 1 . Locate Traps 1 | . 1 . Hauler Manifests 1 | . 1 . Fabricator Hacks . | . . . Repair Station Hacks . | . . . Recycling Unit Hacks . | . . . Scanalyzer . | . . . Garrison Access Hacks . | . . . Unauthorized Hacks 9 | . 9 . Terminals 9 | . 9 . Track 1 | . 1 . Assimilate 1 | . 1 . Botnet 2 | . 2 . Skim 5 | . 5 . Fabricators . | . . . Repair Stations . | . . . Recycling Units . | . . . Scanalyzers . | . . . Garrison Access . | . . . Data Cores Recovered . | . . . Used . | . . . Hacking Detections 6 | . 6 . Full Trace Events 1 | . 1 . Feedback Events . | . . . Feedback Blocked . | . . . Robot Schematics Acquired . | . . . Robots Built . | . . . Authchips . | . . . Time . | . . . Total Robot Build Rating . | . . . Part Schematics Acquired 1 | . 1 . Parts Built . | . . . Authchips . | . . . Time . | . . . Total Part Build Rating . | . . . Part Studies Acquired . | . . . Parts Repaired . | . . . Time . | . . . Parts Recycled . | . . . Recycled Matter . | . . . Retrieved Matter . | . . . Retrieved Components . | . . . Parts Scanalyzed . | . . . Part Schematics Acquired . | . . . Parts Damaged . | . . . Bothacking | -11 -10 -10 ------------ Run | Yrd Mat Min Used RIF Installer . | . . . Robots Hacked . | . . . Non-combat . | . . . Combat . | . . . Robot Hacks Applied . | . . . Relay Couplers Released . | . . . Fabnet Peak Effective % . | . . . Robots Rewired . | . . . Allies Hacked . | . . . Hacks Repelled . | . . . Allies | -11 -10 -10 -------- Run | Yrd Mat Min Total Allies 4 | . 1 3 Largest Group 3 | . 1 3 Highest-Rated Group 40 | . 10 40 Highest-Rated Ally 16 | . 10 16 Total Orders 2 | . 2 . STAY 1 | . 1 . FOLLOW 1 | . 1 . Ally Attacks 30 | . . 30 Total Damage 302 | . . 302 Kills 5 | . . 5 Allies Corrupted . | . . . Allies Melted . | . . . Intel | -11 -10 -10 ------- Run | Yrd Mat Min Active Infowar (turns) 998 | . 780 218 Seismic 998 | . 780 218 Robot Analysis Total 1 | . 1 . Derelict Logs Recovered 1 | . . 1 Drone Launches . | . . . Drone Recoveries . | . . . Exploration | -11 -10 -10 ------------- Run | Yrd Mat Min Turns Passed 1727 | 425 780 522 Spaces Moved 1800 | 250 989 561 Core 1537 | 24 970 543 Treads 263 | 226 19 18 Legs . | . . . Wheels . | . . . Hover . | . . . Flight . | . . . Fastest Speed 50 | 50 50 50 Average Speed 66 | 149 52 53 Slowest Speed 160 | 160 160 160 Overloaded Moves . | . . . Propulsion Burnouts . | . . . Robots Hopped . | . . . Potential Cave-ins . | . . . Cave-ins Triggered . | . . . Exploration Rate (%) 60 | 7 85 88 Regions Visited 2 Branch Regions 1 Pre-discovered Areas . | . . . Known Exits Taken . | . . . Unknown Exits Taken 2 | 1 1 . Scrap Searched . | . . . Spaces Dug . | . . . Terrain Destroyed . | . . . Melee . | . . . Projectile . | . . . AOE . | . . . Terrain Rammed . | . . . Walls Destroyed . | . . . Machines Disabled . | . . . Actions | -11 -10 -10 --------- Run | Yrd Mat Min Total 2302 | 283 1239 780 Wait 423 | . 210 213 Move 1798 | 249 988 561 Hop . | . . . Pick Up 10 | 1 8 1 Fast Attach 10 | 4 5 1 Attach 2 | . 1 1 Detach 2 | 2 . . Swap . | . . . Drop 5 | . 5 . Fire . | . . . Melee . | . . . Ram . | . . . Kick . | . . . Crush 52 | 27 22 3 Escape Stasis . | . . . Rewire . | . . . Trap . | . . . Miscellaneous . | . . . Route ------- -11/Scrapyard -10/Materials (discovered 4 exits: *Mat x3 / *Min) -10/Mines (discovered 3 exits: *Mat x2 / Sub) History --------- Turn | Location | Event 7 | -11/Scrapyard | Discovered new exit (range 14) 426 | -11/Scrapyard | Entered Materials 447 | -10/Materials | Build established: Mutant 738 | -10/Materials | Discovered new exit (range 9) 759 | -10/Materials | Discovered new exit (range 14) 1102 | -10/Materials | Identified exit to Materials 1206 | -10/Materials | Entered Mines 1207 | -10/Mines | Assembled infested the area 1210 | -10/Mines | Identified exit to Subcaves 1212 | -10/Mines | Assisted by a Guerilla fighting off Assembled 1249 | -10/Mines | Found a damaged Exp. Sensor Array with a note attached 1253 | -10/Mines | Core integrity fell below 50% 1283 | -10/Mines | Core integrity fell below 20% 1323 | -10/Mines | Discovered exit to Materials (range 4) 1338 | -10/Mines | Assisted by bots powering up and referring to "LRC-V3" 1397 | -10/Mines | Discovered exit to Materials (range 12) 1398 | -10/Mines | Met a Derelict shopkeep closing up shop 1554 | -10/Mines | Lost 3 allies 1728 | -10/Mines | Destroyed by as-20726 with Assembled Rifle Last Messages --------------- >>Open Door Sealed Doors opened. 01397_ EXIT=FOUND: MATERIALS 01398_ FG-X01(g): "Sorry, the Unaware have moved into these parts and I'm closing up shop. No more sales from me!" 01400_ ALERT: Derelict activity detected in mines. Dispatching investigation squad. 01402_ FG-X01(g): "Well, take what you want I guess, I've had enough of this place!" 01413_ K-01 Serf collects debris. 01453_ The unstable cave ceiling collapses. 01459_ U-05 Engineer lays Concrete. 01637_ U-05 Engineer builds a Wall. 01638_ K-01 Serf collects debris. 01638_ U-05 Engineer lays Concrete. 01640_ U-05 Engineer builds a Wall. 01651_ Acquired Seismic Detector. 01685_ Acquired 10 matter. 01714_ A derelict is hurriedly installing traps. Map ----- +----------------------------------------------------+ | ?????????????## ### ##???#??## # | | ????????????## ##?## #####????## # # | | ???????????## ##???# ## ###???########### | | ???????????# ####### ##????????????? | | ??????>???## #????????????? | | ?????????## #????????????? | | ?????????#=| ####### ## #????????????? | | ?????????#% = ###?????##?## #????????????? | | ?????????#######???????????##### "##???????????? | | ???????????????????????????????## #???????????? | | ???????????????????????????????## #???????????? | | ??????????????????????????###### #???????????? | | ???#############??????????# #???????????? | | ???# #??????????# ########???????????? | | ???# #######????# #??????????????????? | | ???# """ """ ==#????# #??????????????????? | | ???# """ """ #####%###### #??????????????????? | | ???# """ """ #???#=## !% #??????????????????? | | ???# #???# ## ############???????????? | | ???# """ """ #???# ##=#"*### ##????????#?? | | ???# """ """ #???# =!#"! !# ##### < #?? | | ???# """ """ #???####t#"[ #??? | | ???# #??????#*#"! #???? | | ???####?########??????#!#"! !#X ###### #???? | | ???????????????######## #"!### ##????????????? | | ???????????# a @##??# #??????????#### | | ???????????????######## #???## ##?????????## # | | ?????????????????# !#????# ##?????????## | | ?????????????????# ####%#????# #??????????# | | ?????????????????# ???#!#????# #??????????# # | | ????????????????? ????#%#????# #??????????# ## | | ???????????????? ????#k#??###!#???????##### #? | | ??????????????? ??#### ####=%*#???????# ## | | ??????????????? ??# s ## ###???????# # | | ?????????????# " % # ####??????# = | | ?????????????# " % # #??????### !% | | ?????????????# " % "# ## #????#### =% | | ?????????????#### * ## #????# | | ????????????????# =%! "### ###### % | | ????????????????# = ##?# *% | | ????????????????# ^ "##??######### # | | ????????????????# # ###???????????### ## | | ????????????????# ###????????????????## #? | | ????????????????## #????????????????????## # | | ?????????????????###??????????????????????# # | | ??????????????????????????????????????????# # | | ??????????????????????????????????????????## ## | | ???????????????????????????????????????????####? | | ???????????????????????????????????????????????? | | ???????????????????????????????????????????????? | +----------------------------------------------------+ Best States ------------- Heat Dissipation 25 Energy Generation 10 Energy Capacity 250 Matter Stores 300 Matter Capacity 300 Sight Range 16 Terrain Scan Density 10 Evasion (%) 50 Recoil Reduction 2 Item Schematics ----------------- Mining Claw | -10/Materials | Hacked Robot Schematics ------------------ None Fabricated ------------ Nothing Repaired ---------- Nothing Studied --------- None Alien Tech Used ----------------- None Achievements -------------- None Challenges ------------ None Game ------ Seed HybridAdvancedPod Manual? 0 Play Time 00:19:09 Cumulative 125.3 hours Start 2026.09.12 @ 14:59:05 End 2026.09.12 @ 15:13:59 Sessions 1 Manual Loads 0 Difficulty Rogue Special Mode None Game No. 57 Rogue 57 Adventurer 0 Explorer 0 Win Type - Total 6 Types 1/1/2/0/0/0/0/1/0/1 Lore% 73 Gallery% 65 Achievement% 53 Wizard Run 0 Options --------- Layout 1 ASCII 0 Keyboard 1 Movement Arrows Keybinds 0 Fullscreen 2 Font 24/Smallcaps Map View 50x35 Zoom Use 0% Tactical HUD 1 Map Filters NONE Filters NONE Steam 1 RUN: a2e64fe4-be70-49a3-87e2-46a0903e70de